bitfinex/quotes_ETHUSD_20211001
["timestamp","ask_amount","ask_price","bid_price","bid_amount"]
[1633057380148,0.14491638,2994.1,2994.0,15.96111516]
[1633057380349,0.14491638,2994.1,2994.0,23.96111516]
[1633057383954,0.14491638,2994.1,2994.0,22.66711516]
[1633057384154,0.14491638,2994.1,2994.0,13.66711516]
[1633057384953,0.14491638,2994.1,2994.0,13.65782116]
[1633057385154,0.14491638,2994.1,2994.0,12.33242116]
[1633057385758,0.14491638,2994.1,2994.0,13.62642116]
[1633057386056,0.14491638,2994.1,2994.0,12.33242116]
[1633057388055,0.14491638,2994.1,2994.0,42.42552116]
[1633057388256,0.09176221,2994.1,2994.0,41.01185116]
[1633057388655,0.09176221,2994.1,2994.0,21.43185116]
[1633057389661,0.09176221,2994.1,2994.0,26.44010116]
[1633057390256,0.09176221,2994.1,2994.0,23.84350116]
[1633057390457,0.09176221,2994.1,2994.0,43.42350116]
[1633057390656,0.09176221,2994.1,2994.0,45.32313719]
[1633057392460,0.09176221,2994.1,2994.0,45.32254464]
[1633057392660,0.09176221,2994.1,2994.0,43.42350116]
[1633057393463,0.14907216,2994.4,2994.2,5.00819]
[1633057393662,0.14907216,2994.4,2994.3,0.90062742]
[1633057393864,0.14907216,2994.4,2994.3,11.64075198]
[1633057394061,0.14907216,2994.4,2994.3,12.94745986]
[1633057394263,0.14907216,2994.4,2994.3,11.94719554]
[1633057394532,0.14907216,2994.4,2994.3,10.64075198]
[1633057394934,0.14907216,2994.4,2994.3,3.94715386]
[1633057395133,0.14907216,2994.4,2994.3,2.64075198]
[1633057395735,0.14907216,2994.4,2994.3,3.94689741]
[1633057396135,0.14907216,2994.4,2994.3,2.64075198]
[1633057396334,0.003,2995.0,2994.4,8.95]
[1633057396536,0.003,2995.0,2994.9,5.02]
[1633057396735,0.003,2995.0,2994.9,7.21501984]
[1633057397135,0.003,2995.0,2994.9,11.37601101]
[1633057397336,0.003,2995.0,2994.9,10.92476648]
[1633057397538,2.98141786,2995.4,2995.3,10.50704457]
[1633057397736,0.003,2996.0,2995.4,9.77285014]
[1633057397937,0.003,2996.0,2995.7,5.02]
[1633057398135,0.003,2996.0,2995.8,0.201]
[1633057398335,0.003,2996.0,2995.9,0.97864223]
[1633057398535,0.003,2996.0,2995.9,6.18514223]
[1633057400738,0.00484622,2996.0,2995.9,6.18514223]
[1633057406439,0.00484622,2996.0,2995.9,7.18514223]
[1633057408240,0.00484622,2996.0,2995.9,6.18514223]
[1633057408441,0.00484622,2996.0,2995.9,7.18514223]
[1633057410647,0.00484622,2996.0,2995.9,6.18514223]
[1633057410843,1.16210432,2996.2,2995.9,6.18514223]
[1633057411443,1.11210432,2996.2,2995.9,6.18514223]
[1633057413245,0.00095322,2996.1,2995.9,6.18514223]
[1633057413845,0.00095322,2996.1,2995.9,9.52198223]
[1633057414246,0.00095322,2996.1,2995.9,4.51648223]
[1633057414646,0.00095322,2996.1,2996.0,6.67374]
[1633057414846,0.00095322,2996.1,2996.0,6.87474]
[1633057415247,1.36313822,2996.1,2996.0,0.201]
[1633057415450,0.06913822,2996.1,2996.0,0.201]
[1633057416047,2.01432871,2996.1,2996.0,0.201]
[1633057416446,2.01432871,2996.1,2995.9,5.00691]
[1633057417046,0.00095322,2996.1,2995.9,5.00691]
[1633057418650,0.00095322,2996.1,2995.9,8.3445594]
[1633057420653,0.00095322,2996.1,2995.8,7.51215668]
[1633057420854,0.00095322,2996.1,2995.8,0.83685668]
[1633057423252,0.00095322,2996.1,2995.8,5.84404668]
[1633057423855,0.00095322,2996.1,2995.9,1.84370557]
[1633057424252,0.00095322,2996.1,2996.0,5.00589]
[1633057424452,0.00095322,2996.1,2996.0,5.20689]
[1633057426456,0.00095322,2996.1,2996.0,5.15689]
[1633057427457,0.00095322,2996.1,2996.0,0.201]
[1633057429058,0.00095322,2996.1,2996.0,6.17980102]
[1633057429661,0.00095322,2996.1,2996.0,1.17287102]
[1633057430060,0.00095322,2996.1,2996.0,6.17966102]
[1633057430259,0.00095322,2996.1,2996.0,5.20779]
[1633057433064,1.58436274,2996.1,2996.0,5.20779]
[1633057433723,1.58436274,2996.1,2996.0,0.201]
[1633057433929,3.88777661,2996.1,2996.0,0.201]
[1633057434125,0.201,2996.0,2995.7,0.201]
[1633057434324,1.26220489,2996.0,2995.4,0.003]
[1633057434525,0.079913,2995.5,2994.9,0.207]
[1633057434728,0.14111789,2995.5,2995.0,0.003]
[1633057434926,0.14111789,2995.5,2995.0,0.006]
[1633057434927,1.7402878,2995.1,2995.0,0.006]
[1633057435125,1.87018669,2995.1,2995.0,0.006]
[1633057435724,0.12989889,2995.1,2995.0,0.006]
[1633057435926,0.06120489,2995.1,2995.0,5.01435]
[1633057436125,0.06120489,2995.1,2995.0,0.006]
[1633057436728,1.42047989,2995.1,2995.0,0.006]
[1633057436928,0.12647989,2995.1,2995.0,0.006]
[1633057437729,0.06120489,2995.1,2995.0,0.006]
[1633057439331,0.06120489,2995.1,2995.0,5.01436]
[1633057440730,0.06120489,2995.1,2995.0,6.7772863]
[1633057440931,0.06120489,2995.1,2995.0,1.7689263]
[1633057441331,0.06120489,2995.1,2995.0,0.00440205]
[1633057441534,0.06120489,2995.1,2994.9,0.15540205]
[1633057441733,5.00853,2995.7,2994.9,0.15540205]
[1633057441734,0.02464117,2996.1,2995.6,1.02361067]
[1633057441932,1.11210432,2996.2,2995.7,5.38092205]
[1633057441933,0.204,2996.0,2995.7,5.38092205]
[1633057442133,0.204,2996.0,2995.8,0.050349]
[1633057442331,0.204,2996.0,2995.8,1.51692494]
[1633057442533,0.006,2997.1,2996.2,6.81339871]
[1633057442736,0.006,2997.1,2996.4,8.333564]
[1633057442935,0.006,2997.1,2996.4,13.554564]
[1633057443134,0.006,2997.1,2996.5,8.85]
[1633057443336,0.006,2997.1,2996.9,7.42895835]
[1633057443534,0.006,2997.1,2996.9,8.97645835]
[1633057443733,0.006,2997.1,2996.9,13.99645835]
[1633057443937,0.012,2997.0,2996.9,12.57153588]
[1633057444339,2.481,2997.6,2997.1,6.6720509]
[1633057444535,2.481,2997.6,2997.2,0.201]
[1633057444536,2.431,2997.6,2997.2,0.201]
[1633057444736,2.431,2997.6,2997.4,0.84996144]
[1633057444937,2.431,2997.6,2997.5,0.201]
[1633057444938,1.56089187,2997.6,2997.5,0.201]
[1633057448857,0.021,2997.9,2997.7,1.30977886]
[1633057449057,0.021,2997.9,2997.7,4.02991565]
[1633057449257,0.021,2997.9,2997.7,1.41077886]
[1633057449856,0.021,2997.9,2997.7,3.59415021]
[1633057450057,0.021,2997.9,2997.7,16.99949447]
[1633057450259,0.021,2997.9,2997.7,22.61786021]
[1633057451259,0.021,2997.9,2997.7,20.43448886]
[1633057451459,0.021,2997.9,2997.7,6.43077886]
[1633057451660,0.021,2997.9,2997.7,1.41077886]
[1633057453261,0.00706815,2997.8,2997.7,1.41077886]
[1633057453462,0.0081363,2997.8,2997.7,1.41077886]
[1633057454061,0.0081363,2997.8,2997.7,2.70477886]
[1633057454262,0.0081363,2997.8,2997.7,2.41077886]
[1633057454464,0.0081363,2997.8,2997.7,1.41077886]
[1633057454864,0.0081363,2997.8,2997.7,5.71334224]
[1633057455066,0.006,2998.1,2997.8,9.75528146]
[1633057455262,0.006,2998.1,2998.0,5.02]
[1633057455464,0.006,2998.1,2998.0,5.221]
[1633057455665,0.006,2998.1,2998.0,6.221]
[1633057455862,0.006,2998.1,2998.0,11.22317]
[1633057456163,0.006,2998.1,2998.0,22.5576887]
[1633057456365,0.006,2998.1,2998.0,14.8516887]
[1633057456563,0.006,2998.1,2998.0,22.8516887]
[1633057456764,0.006,2998.1,2998.0,23.8516887]
[1633057457163,0.006,2998.1,2998.0,22.5576887]
[1633057457426,0.006,2998.9,2998.1,1.47730758]
[1633057457563,0.006,2998.9,2998.3,6.6699932]
[1633057457764,0.006,2998.9,2998.4,0.201]
[1633057457964,0.069596,2998.5,2998.0,0.003]
[1633057458163,3.88600838,2998.5,2998.0,0.003]
[1633057458563,1.0,2998.4,2997.8,0.003]
[1633057458763,0.78813754,2998.0,2997.8,0.003]
[1633057459463,0.069596,2998.5,2997.8,0.003]
[1633057460463,1.42409967,2998.1,2997.8,0.003]
[1633057460864,0.79745326,2997.9,2997.8,0.003]
[1633057461464,0.86532426,2997.9,2997.8,0.003]
[1633057462865,0.067871,2997.9,2997.8,0.003]
[1633057463264,1.42409967,2998.1,2997.8,0.003]
[1633057464064,0.00083237,2998.0,2997.8,0.003]
[1633057465066,5.0052,2998.0,2997.8,0.003]
[1633057465468,1.42109676,2997.6,2997.5,0.003]
[1633057465670,1.42109676,2997.6,2997.2,0.003]
[1633057465671,4.26329028,2997.6,2997.2,0.003]
[1633057465867,2.21346901,2997.5,2996.6,0.006]
[1633057466068,1.7001,2996.9,2996.3,0.204]
[1633057466266,1.7001,2996.9,2996.4,0.009]
[1633057466267,3.3496,2996.9,2996.4,0.009]
[1633057467269,1.6495,2996.9,2996.8,0.95427797]
[1633057467469,1.51794941,2996.9,2996.4,0.009]
[1633057467670,1.51794941,2996.9,2996.8,0.006]
[1633057468068,1.51794941,2996.9,2996.5,0.201]
[1633057468069,1.51794941,2996.9,2996.6,0.006]
[1633057468270,3.25314941,2996.9,2996.6,0.207]
[1633057468670,3.25314941,2996.9,2996.7,0.006]
[1633057471336,1.51794941,2996.9,2996.7,0.006]
[1633057471734,11.2684,2997.4,2996.7,0.006]
[1633057471935,11.2684,2997.4,2996.7,5.01129]
[1633057472134,4.29925128,2997.6,2997.0,0.93906327]
[1633057472135,5.10081264,2997.6,2997.0,0.93906327]
[1633057472534,1.294,2997.3,2997.1,0.003]
[1633057472734,1.72780873,2997.2,2997.1,0.003]
[1633057472936,1.72780873,2997.2,2996.7,0.006]
[1633057473335,5.0066,2997.1,2996.7,0.006]
[1633057473734,1.72780873,2997.2,2996.7,0.006]
[1633057474733,1.72780873,2997.2,2997.0,0.96824804]
[1633057475134,1.72780873,2997.2,2997.1,0.003]
[1633057475538,1.72780873,2997.2,2996.7,0.006]
[1633057476336,0.8397079,2997.1,2996.6,0.90856052]
[1633057476736,1.565604,2996.7,2996.6,0.90856052]
[1633057477136,0.8397079,2997.1,2996.6,0.90856052]
[1633057477338,0.8397079,2997.1,2996.6,0.90650153]
[1633057477935,0.8397079,2997.1,2996.6,0.19333553]
[1633057478135,1.50474941,2997.0,2996.6,0.19333553]
[1633057478339,1.50474941,2997.0,2996.2,0.003]
[1633057478537,3.51354941,2997.0,2996.2,0.003]
[1633057478735,11.0,2996.9,2996.2,0.003]
[1633057478936,0.82209815,2996.4,2996.2,0.003]
[1633057479136,2.69026247,2996.4,2996.2,0.003]
[1633057480738,7.67641,2996.9,2996.3,0.7803896]
[1633057480941,13.0735,2997.3,2996.3,0.7803896]
[1633057481138,0.204,2997.5,2996.4,3.54079]
[1633057481139,11.0566,2997.2,2996.4,3.54079]
[1633057481538,0.003,2997.5,2996.5,0.003]
[1633057481740,0.003,2997.5,2996.9,5.85244168]
[1633057481741,1.83218183,2997.1,2996.9,5.85244168]
[1633057481938,1.83218183,2997.1,2996.9,8.5426269]
[1633057482338,1.83218183,2997.1,2996.9,0.201]
[1633057482941,4.29026058,2997.0,2996.9,0.201]
[1633057483142,2.03426058,2997.0,2996.6,0.201]
[1633057483341,17.74026058,2997.0,2996.6,0.201]
[1633057483545,1.74026058,2997.0,2996.6,0.201]
[1633057483744,0.74026058,2997.0,2996.6,0.201]
[1633057483942,7.0,2996.9,2996.6,0.201]
[1633057484342,1.83218183,2997.1,2996.6,0.201]
[1633057486148,0.71364202,2996.8,2996.6,0.201]
[1633057487347,1.83218183,2997.1,2996.6,0.201]
[1633057488549,2.60286867,2997.1,2996.6,0.201]
[1633057488750,2.60286867,2997.1,2996.4,0.003]
[1633057488751,1.329961,2996.9,2996.4,0.003]
[1633057488950,0.035961,2996.9,2996.4,0.003]
[1633057489147,0.035961,2996.9,2996.3,0.003]
[1633057489750,1.00370089,2996.6,2996.3,0.003]
[1633057490148,6.01107089,2996.6,2996.3,0.003]
[1633057490350,1.99036626,2996.5,2996.3,0.003]
[1633057490549,3.50226626,2996.5,2996.3,0.003]
[1633057490949,3.50226626,2996.5,2995.9,0.006]
[1633057492556,1.7634359,2996.0,2995.9,0.006]
[1633057492751,1.00370089,2996.6,2995.9,0.006]
[1633057493556,6.30171,2996.3,2995.9,0.006]
[1633057493751,1.00370089,2996.6,2995.9,0.006]
[1633057494951,5.00682,2996.8,2996.2,0.99709495]
[1633057495152,10.0,2997.0,2995.9,0.006]
[1633057495351,1.0,2996.7,2996.3,0.003]
[1633057495552,10.0,2997.0,2996.3,0.003]
[1633057495553,6.035961,2996.9,2996.3,0.003]
[1633057495752,1.72277119,2996.4,2996.1,0.003]
[1633057495952,1.72277119,2996.4,2996.0,0.003]
[1633057496151,1.72277119,2996.4,2995.9,0.89410864]
[1633057496351,1.72277119,2996.4,2995.9,0.006]
[1633057496555,1.72277119,2996.4,2996.0,0.006]
[1633057496556,1.294,2996.2,2996.0,0.006]
[1633057496753,0.035961,2996.3,2996.0,0.006]
[1633057496954,0.201,2996.2,2995.7,0.006]
[1633057497156,0.201,2996.2,2995.2,0.003]
[1633057497157,0.16935861,2995.6,2995.2,0.003]
[1633057497355,2.33276741,2995.2,2994.9,0.006]
[1633057497555,0.88675996,2994.3,2994.2,0.009]
[1633057497855,4.53657114,2994.3,2994.2,0.009]
[1633057498155,5.73080226,2994.3,2994.2,0.009]
[1633057498354,3.27735996,2994.3,2994.2,0.009]
[1633057498556,1.3906,2994.3,2994.2,0.009]
[1633057498855,1.0,2994.7,2994.2,0.009]
[1633057499056,34.0484,2995.1,2994.2,0.009]
[1633057499057,1.0,2995.0,2994.2,0.009]
[1633057499254,34.0484,2995.1,2994.3,0.201]
[1633057499456,22.662,2995.1,2994.3,0.201]
[1633057499656,10.8819,2995.1,2994.6,0.92241379]
[1633057499857,12.902561,2995.5,2994.6,0.92241379]
[1633057500056,1.0,2995.4,2994.7,0.006]
[1633057500256,3.33978,2995.4,2994.7,0.006]
[1633057500458,1.294,2995.1,2994.7,0.006]
[1633057500655,2.23741415,2995.3,2994.7,0.006]
[1633057500858,3.375741,2995.4,2994.4,0.009]
[1633057501059,3.34033,2995.1,2994.4,0.009]
[1633057501256,1.88538592,2995.0,2994.4,0.009]
[1633057501457,0.71124122,2994.5,2994.4,0.009]
[1633057502657,6.73995848,2994.5,2994.4,0.009]
[1633057503258,4.34019,2995.0,2994.4,0.009]
[1633057503856,0.71248428,2995.0,2994.4,0.92654556]
[1633057504259,0.71248428,2995.0,2994.5,0.009]
[1633057505057,5.72224428,2995.0,2994.5,0.009]
[1633057505257,5.72224428,2995.0,2994.3,0.201]
[1633057505258,5.72224428,2995.0,2994.4,0.009]
[1633057505460,2.73713686,2994.9,2994.4,0.009]
[1633057505859,1.73713686,2994.9,2994.4,0.009]
[1633057506061,5.01071,2994.6,2994.4,0.009]
[1633057506260,1.73713686,2994.9,2994.5,0.97509551]
[1633057506662,1.0,2995.1,2994.6,0.006]
[1633057506862,1.0,2995.3,2994.6,0.006]
[1633057507058,10.993161,2995.4,2994.6,0.006]
[1633057507059,0.035961,2995.4,2994.6,0.006]
[1633057507258,5.00998,2995.1,2994.6,0.006]
[1633057507459,0.71227798,2995.0,2994.6,0.006]
[1633057507860,0.035961,2995.4,2994.4,0.009]
[1633057508060,11.78445861,2995.6,2994.5,0.073667]
[1633057508261,11.78445861,2995.6,2994.6,0.201]
[1633057508460,0.16935861,2995.6,2994.6,0.207]
[1633057508660,0.16935861,2995.6,2994.7,0.006]
[1633057508860,0.79493626,2995.1,2994.8,0.201]
[1633057509262,0.79493626,2995.1,2994.9,0.006]
[1633057509661,1.59189667,2995.0,2994.9,0.006]
[1633057510662,2.34915861,2995.6,2994.9,0.006]
[1633057510663,1.16935861,2995.6,2994.9,0.006]
[1633057510866,6.00924,2995.5,2994.9,0.006]
[1633057511063,1.0,2995.4,2994.9,0.006]
[1633057511467,0.71310546,2995.2,2994.9,0.006]
[1633057511664,1.85141342,2995.1,2994.9,0.006]
[1633057512865,0.71310546,2995.2,2994.9,0.006]
[1633057513868,1.66104537,2995.1,2994.9,0.006]
[1633057514669,3.00854537,2995.1,2994.9,0.006]
[1633057514867,3.00854537,2995.1,2994.4,0.009]
[1633057515066,1.0,2995.0,2994.4,0.009]
[1633057515467,1.0,2995.0,2994.6,0.9031408]
[1633057515867,2.66104537,2995.1,2994.7,0.006]
[1633057516066,1.66104537,2995.1,2994.7,0.006]
[1633057516265,1.66104537,2995.1,2994.4,0.009]
[1633057516467,2.66104537,2995.1,2994.4,0.009]
[1633057516667,1.0,2995.1,2994.4,5.01824]
[1633057516867,1.0,2995.1,2994.5,3.3393765]
[1633057517067,1.71310546,2995.2,2994.5,0.009]
[1633057517270,1.294,2994.9,2994.6,0.006]
[1633057517467,1.3949,2994.9,2994.4,0.009]
[1633057517669,1.3949,2994.9,2994.2,0.009]
[1633057517670,1.96694626,2994.8,2994.2,0.009]
[1633057517872,2.36131079,2994.3,2994.2,0.009]
[1633057518067,9.02505079,2994.3,2994.2,0.009]
[1633057518668,1.6525,2994.3,2994.2,0.009]
[1633057519269,0.8406,2994.4,2994.2,0.009]
[1633057519470,1.0,2994.8,2994.2,0.009]
[1633057519670,1.0,2994.8,2994.3,0.80224778]
[1633057519871,2.5183346,2994.9,2994.3,0.80224778]
[1633057520071,1.0,2994.8,2994.4,0.009]
[1633057520469,5.01076,2994.5,2994.2,0.009]
[1633057521071,1.99869821,2994.4,2994.2,0.009]
[1633057521870,1.0,2994.7,2994.2,0.009]
[1633057522271,0.035961,2995.5,2994.3,0.201]
[1633057522272,1.0,2995.4,2994.3,0.201]
[1633057522673,1.0,2995.4,2994.4,0.009]
[1633057522872,1.66928847,2994.8,2994.4,0.009]
[1633057523271,1.66928847,2994.8,2994.4,3.3486879]
[1633057523674,1.66928847,2994.8,2994.5,0.009]
[1633057524073,6.67956847,2994.8,2994.4,0.009]
[1633057524274,5.0,2994.7,2994.4,0.009]
[1633057524472,5.0,2994.7,2994.3,0.201]
[1633057524673,1.66928847,2994.8,2994.3,0.201]
[1633057525875,5.01046,2994.7,2994.3,0.201]
[1633057526937,0.79240211,2994.5,2994.3,0.201]
[1633057527136,5.80322211,2994.5,2994.3,0.201]
[1633057527336,0.79240211,2994.5,2994.3,0.201]
[1633057528936,1.66928847,2994.8,2994.3,0.201]
[1633057529338,1.0,2994.9,2994.3,0.201]
[1633057529539,5.00998,2994.9,2994.3,0.201]
[1633057529738,0.003,2995.0,2994.3,0.201]
[1633057529936,0.91826304,2994.8,2994.3,0.201]
[1633057530739,6.51469442,2994.6,2994.3,0.201]
[1633057531137,6.55550548,2994.6,2994.3,0.201]
[1633057534343,6.50550548,2994.6,2994.3,0.201]
[1633057536949,9.84624548,2994.6,2994.3,0.201]
[1633057537149,5.01088,2994.5,2994.3,0.201]
[1633057537349,5.05169106,2994.5,2994.3,0.201]
[1633057538152,5.05169106,2994.5,2994.1,0.00400788]
[1633057538351,0.83035215,2994.2,2994.1,0.00400788]
[1633057538552,5.88245321,2994.2,2994.1,0.00400788]
[1633057540954,19.17645321,2994.2,2994.1,0.00400788]
[1633057541154,20.17645321,2994.2,2994.1,0.00400788]
[1633057542355,13.04081106,2994.2,2994.1,0.00400788]
[1633057542556,0.04081106,2994.2,2994.1,0.00400788]
[1633057543360,1.02023472,2994.2,2994.1,0.00400788]
[1633057544158,2.31423472,2994.2,2994.1,0.00400788]
[1633057544359,7.32542472,2994.2,2994.1,0.00400788]
[1633057544761,8.32542472,2994.2,2994.1,0.00400788]
[1633057545760,7.03142472,2994.2,2994.1,0.00400788]
[1633057545965,2.02023472,2994.2,2994.1,0.00400788]
[1633057546361,1.02023472,2994.2,2994.1,0.00400788]
[1633057547161,6.03145472,2994.2,2994.1,0.00400788]
[1633057547361,7.32545472,2994.2,2994.1,0.00400788]
[1633057547562,8.32545472,2994.2,2994.1,0.00400788]
[1633057552166,7.03145472,2994.2,2994.1,0.00400788]
[1633057552566,6.03145472,2994.2,2994.1,0.00400788]
[1633057552766,7.03145472,2994.2,2994.1,0.00400788]
[1633057554767,1.04081106,2994.2,2994.1,0.00400788]
[1633057554968,0.04081106,2994.2,2994.1,0.00400788]
[1633057555970,0.99834697,2994.2,2994.1,0.00400788]
[1633057556770,1.90967031,2994.1,2994.0,0.0449105]
[1633057556970,1.95048137,2994.1,2994.0,0.0449105]
[1633057559372,2.95048137,2994.1,2994.0,0.0449105]
[1633057559576,7.96187137,2994.1,2994.0,0.0449105]
[1633057560374,2.95048137,2994.1,2994.0,0.0449105]
[1633057560573,1.95048137,2994.1,2994.0,0.0449105]
[1633057561472,2.95048137,2994.1,2994.0,0.0449105]
[1633057562674,7.96183137,2994.1,2994.0,0.0449105]
[1633057564277,2.95048137,2994.1,2994.0,0.0449105]
[1633057566075,1.04081106,2994.1,2994.0,0.0449105]
[1633057566275,0.04081106,2994.1,2994.0,0.0449105]
[1633057566674,0.04081106,2994.1,2994.0,0.201]
[1633057567077,0.04081106,2994.1,2994.0,1.16002583]
[1633057567275,0.04081106,2994.1,2994.0,6.87182887]
[1633057567676,0.04081106,2994.1,2994.0,6.86018314]
[1633057568074,0.04081106,2994.1,2994.0,6.61317678]
[1633057568874,0.04081106,2994.1,2994.0,5.71180304]
[1633057572278,0.04081106,2994.1,2994.0,5.91280304]
[1633057573880,0.04081106,2994.1,2994.0,5.88649604]
[1633057577940,0.04081106,2994.1,2994.0,0.87615604]
[1633057578944,0.04081106,2994.1,2994.0,5.88629604]
[1633057581340,0.04081106,2994.1,2994.0,0.87615604]
[1633057583344,0.04081106,2994.1,2994.0,5.88642604]
[1633057584552,0.04081106,2994.1,2994.0,0.87615604]
[1633057586155,0.04081106,2994.1,2994.0,5.88645604]
[1633057590156,0.04081106,2994.1,2994.0,0.87615604]
[1633057590760,0.04081106,2994.1,2994.0,5.88641604]
[1633057591356,0.04081106,2994.1,2994.0,0.87615604]
[1633057591957,0.04081106,2994.1,2994.0,5.88656604]
[1633057592958,0.04081106,2994.1,2994.0,0.87615604]
[1633057594558,0.04081106,2994.1,2994.0,5.88653604]
[1633057595562,0.04081106,2994.1,2994.0,0.87615604]
[1633057596660,0.04081106,2994.1,2994.0,5.88649604]
[1633057596861,0.04081106,2994.1,2994.0,5.87869625]
[1633057597060,1.78882964,2994.6,2994.0,5.87869625]
[1633057597262,0.78882964,2994.6,2994.0,5.21434]
[1633057597462,1.78882964,2994.6,2994.0,5.21434]
[1633057597864,0.011534,2994.9,2994.0,5.21434]
[1633057598864,0.84421085,2994.7,2994.0,5.21434]
[1633057599063,1.59862428,2994.5,2994.0,5.21434]
[1633057599865,0.84421085,2994.7,2994.0,5.21434]
[1633057600265,0.011534,2994.9,2994.0,5.21434]
[1633057601065,0.011534,2994.9,2994.0,5.287287]
[1633057601266,0.003,2995.0,2994.7,0.97673127]
[1633057601467,0.003,2995.0,2994.8,1.495]
[1633057601667,0.003,2995.0,2994.8,7.64268909]
[1633057601970,0.003,2995.5,2995.0,1.7661119]
[1633057602165,0.003,2995.5,2995.4,11.749913]
[1633057602368,0.003,2995.5,2995.4,9.01784295]
[1633057602568,0.003,2995.5,2995.4,10.31184295]
[1633057602774,0.003,2995.5,2995.4,11.31184295]
[1633057602971,0.16935861,2995.6,2995.4,11.31184295]
[1633057603173,0.003,2996.5,2995.6,8.9]
[1633057603370,0.003,2996.5,2996.4,5.099913]
[1633057603571,0.003,2996.5,2996.4,17.23248313]
[1633057603768,0.003,2997.0,2996.5,8.9]
[1633057603967,0.003,2997.0,2996.9,6.09793463]
[1633057604168,0.003,2997.0,2996.9,7.88930151]
[1633057604366,0.003,2997.0,2996.9,8.88930151]
[1633057604568,0.003,2997.0,2996.9,10.18330151]
[1633057604767,0.003,2997.0,2996.9,15.18721151]
[1633057605872,0.006,2997.1,2996.9,15.18721151]
[1633057606069,0.006,2997.1,2997.0,7.314]
[1633057606270,0.006,2997.1,2997.0,7.515]
[1633057606670,4.20229028,2997.6,2997.4,2.35642053]
[1633057606871,4.20229028,2997.6,2997.5,0.201]
[1633057607071,4.20229028,2997.6,2997.5,2.50930029]
[1633057607674,4.20229028,2997.6,2997.5,0.201]
[1633057608073,4.20229028,2997.6,2997.5,5.20438]
[1633057611476,4.20229028,2997.6,2997.5,0.201]
[1633057611477,4.97281642,2997.6,2997.5,0.201]
[1633057611677,4.20229028,2997.6,2997.5,0.201]
[1633057612478,4.20229028,2997.6,2997.5,5.205]
[1633057612676,6.03196901,2997.6,2997.5,5.205]
[1633057612876,4.20229028,2997.6,2997.5,5.205]
[1633057613479,4.20229028,2997.6,2997.5,7.50019347]
[1633057613685,4.20229028,2997.6,2997.5,5.205]
[1633057614880,4.15229028,2997.6,2997.5,5.205]
[1633057615079,0.006,2997.9,2997.6,2.90590741]
[1633057615280,0.006,2997.9,2997.6,9.56647973]
[1633057615481,0.006,2997.9,2997.6,15.58647973]
[1633057615682,0.006,2997.9,2997.6,13.27319769]
[1633057616083,0.006,2997.9,2997.6,16.3135443]
[1633057616283,0.006,2997.9,2997.6,17.6075443]
[1633057619755,0.006,2997.9,2997.6,37.1875443]
[1633057619955,0.006,2997.9,2997.7,8.9]
[1633057620153,0.006,2997.9,2997.7,5.300913]
[1633057620356,0.006,2997.9,2997.7,12.596923]
[1633057620554,0.006,2997.9,2997.7,11.22301]
[1633057620770,0.006,2997.9,2997.7,10.22301]
[1633057621356,0.006,2997.9,2997.7,10.297753]
[1633057621757,0.006,2997.9,2997.7,11.99173367]
[1633057622355,0.006,2997.9,2997.7,11.91699067]
[1633057623156,0.006,2997.9,2997.7,5.221]
[1633057623359,0.006,2997.9,2997.7,0.201]
[1633057623555,0.73209835,2998.3,2997.7,0.201]
[1633057624158,0.73209835,2998.3,2997.7,1.12902714]
[1633057624756,0.006,2998.4,2997.7,1.12902714]
[1633057624956,0.006,2998.4,2997.7,6.13277714]
[1633057626159,0.006,2998.4,2998.0,1.77709796]
[1633057626358,0.006,2998.4,2998.1,2.58421043]
[1633057626558,0.006,2998.4,2998.1,0.201]
[1633057626957,0.006,2998.4,2998.2,0.7603337]
[1633057627157,0.006,2998.4,2998.3,2.0536377]
[1633057627758,0.006,2998.4,2998.3,0.201]
[1633057628857,0.006,2998.4,2998.3,2.48546256]
[1633057629261,0.006,2998.4,2998.3,7.48801256]
[1633057629459,0.006,2998.4,2998.3,5.20355]
[1633057629659,0.006,2998.4,2998.3,0.201]
[1633057631060,1.94535312,2998.7,2998.3,0.201]
[1633057631461,0.006,2998.8,2998.3,0.201]
[1633057632461,0.006,2998.8,2998.7,1.44800319]
[1633057632664,0.006,2998.8,2998.7,1.64900319]
[1633057632861,0.006,2998.8,2998.7,0.201]
[1633057633463,1.3,2998.8,2998.7,0.201]
[1633057633861,1.3,2998.8,2998.7,0.18090001]
[1633057633862,3.31114268,2998.8,2998.7,0.18090001]
[1633057634262,3.31194428,2998.8,2998.7,0.18090001]
[1633057634463,3.31274588,2998.8,2998.7,0.18090001]
[1633057637366,0.18090001,2998.7,2998.0,0.003]
[1633057637566,0.011534,2998.3,2998.0,0.003]
[1633057637767,0.011534,2998.3,2997.7,0.003]
[1633057638265,1.86947418,2997.8,2997.7,0.003]
[1633057638465,3.06717418,2997.8,2997.7,0.003]
[1633057638864,4.36117418,2997.8,2997.7,0.003]
[1633057639065,6.56618834,2997.8,2997.7,0.003]
[1633057639264,4.36117418,2997.8,2997.7,0.003]
[1633057640264,11.36117418,2997.8,2997.7,0.003]
[1633057640465,22.37270818,2997.8,2997.7,0.003]
[1633057641064,23.37270818,2997.8,2997.7,0.003]
[1633057641466,5.37270818,2997.8,2997.7,0.003]
[1633057642065,2.1977,2997.8,2997.7,0.003]
[1633057642267,1.00812175,2998.0,2997.7,0.003]
[1633057643067,2.90852314,2997.9,2997.7,0.003]
[1633057643267,1.61933334,2997.9,2997.7,0.003]
[1633057643669,2.61933334,2997.9,2997.7,0.003]
[1633057644470,1.61933334,2997.9,2997.7,0.003]
[1633057645071,6.611534,2997.8,2997.7,0.003]